bitfinex/quotes_SOLUSD_20250902
["timestamp","ask_amount","ask_price","bid_price","bid_amount"]
[1756783807450,0.06,202.6,202.57,39.66]
[1756783807631,0.06,202.6,202.57,38.94]
[1756783808229,0.74,202.6,202.57,38.94]
[1756783808444,0.06,202.6,202.57,38.94]
[1756783808636,0.06,202.6,202.57,39.66]
[1756783808942,0.06,202.6,202.58,4.93632145]
[1756783809145,0.06,202.6,202.59,38.94]
[1756783811036,0.06,202.6,202.59,43.87607779]
[1756783811344,0.06,202.6,202.59,58.1916718]
[1756783811549,0.06,202.6,202.59,57.4716718]
[1756783813337,0.06,202.6,202.59,18.5316718]
[1756783813544,0.06,202.6,202.59,57.4716718]
[1756783815440,0.74,202.6,202.57,4.93656513]
[1756783815635,0.74,202.6,202.58,38.94]
[1756783815840,0.06,202.6,202.58,38.94]
[1756783816056,0.06,202.6,202.56,4.96675114]
[1756783816255,0.68,202.59,202.57,38.94]
[1756783817353,0.68,202.59,202.57,43.87647134]
[1756783817545,0.06,202.6,202.57,43.87647134]
[1756783817750,0.06,202.6,202.57,44.59647134]
[1756783817949,0.06,202.6,202.58,14.31559401]
[1756783818151,0.06,202.6,202.59,52.51559401]
[1756783819043,0.06,202.6,202.59,53.23559401]
[1756783819861,0.06,202.6,202.59,58.1716718]
[1756783820072,0.06,202.6,202.59,61.6891718]
[1756783820661,0.06,202.61,202.6,13.59559401]
[1756783820964,0.06,202.61,202.6,18.32667742]
[1756783821663,0.06,202.63,202.6,18.32667742]
[1756783821847,0.06,202.63,202.62,18.53094096]
[1756783822051,0.06,202.63,202.62,22.15265633]
[1756783822364,0.06,202.63,202.62,8.55706232]
[1756783822662,0.06,202.63,202.62,43.85534695]
[1756783822870,0.06,202.63,202.62,47.4766568]
[1756783823545,0.06,202.63,202.62,121.4766568]
[1756783824556,0.06,202.63,202.62,122.1966568]
[1756783824869,0.06,202.63,202.62,122.1963354]
[1756783825055,0.06,202.63,202.62,121.4763354]
[1756783825653,0.06,202.63,202.62,47.4763354]
[1756783827675,0.74,202.63,202.62,3.62098845]
[1756783827861,0.74,202.63,202.62,42.54098845]
[1756783828664,0.74,202.63,202.62,3.62098845]
[1756783833389,0.74,202.63,202.62,3.61941245]
[1756783834665,0.74,202.63,202.62,42.51941245]
[1756783836279,0.06,202.63,202.62,42.51941245]
[1756783836484,0.74,202.63,202.62,42.51941245]
[1756783837270,0.74,202.63,202.62,3.61941245]
[1756783837677,0.74,202.63,202.62,3.62014111]
[1756783840065,26.74,202.63,202.62,3.62014111]
[1756783841572,35.00303426,202.63,202.62,3.62014111]
[1756783841777,35.00303426,202.63,202.61,0.03]
[1756783841978,8.26327782,202.62,202.61,0.03]
[1756783842493,8.94327782,202.62,202.61,0.03]
[1756783842889,26.0,202.59,202.58,0.03]
[1756783843092,29.32793087,202.59,202.58,0.03]
[1756783843285,30.00793087,202.59,202.58,0.03]
[1756783844093,34.94400866,202.59,202.58,0.03]
[1756783845395,34.94400866,202.59,202.57,0.03]
[1756783845597,3.32793087,202.58,202.56,0.03]
[1756783845998,7.59553813,202.57,202.56,0.03]
[1756783846179,10.923469,202.57,202.56,0.03]
[1756783846782,10.923469,202.57,202.54,0.03]
[1756783847114,26.0,202.55,202.53,0.03]
[1756783847481,0.68,202.54,202.53,0.03]
[1756783848005,5.61729633,202.54,202.53,0.03]
[1756783849081,0.68,202.54,202.53,0.03]
[1756783850703,26.68,202.54,202.53,0.03]
[1756783850921,33.59636833,202.54,202.53,0.03]
[1756783851218,33.59636833,202.54,202.52,0.03]
[1756783851580,0.68,202.53,202.52,0.03]
[1756783851994,4.29539,202.53,202.52,0.03]
[1756783852195,30.29539,202.53,202.52,0.03]
[1756783853201,3.61539,202.53,202.52,0.03]
[1756783853393,4.29539,202.53,202.52,0.03]
[1756783853801,9.23293011,202.53,202.52,0.03]
[1756783856605,3.61539,202.53,202.52,0.03]
[1756783856982,4.29539,202.53,202.52,0.03]
[1756783857983,26.0,202.54,202.52,0.03]
[1756783858297,27.979071,202.54,202.52,0.03]
[1756783860596,27.979071,202.54,202.52,0.7]
[1756783860792,1.979071,202.54,202.53,0.67]
[1756783860998,1.979071,202.54,202.52,0.03]
[1756783860999,4.99664993,202.57,202.52,0.03]
[1756783861201,26.0,202.54,202.52,0.7]
[1756783862020,4.968242,202.55,202.52,4.96764906]
[1756783862220,0.06,202.57,202.53,0.67]
[1756783862597,0.06,202.57,202.54,0.67]
[1756783863021,0.06,202.57,202.53,4.93752979]
[1756783863022,0.06,202.57,202.55,0.67]
[1756783865135,0.06,202.57,202.56,4.93680884]
[1756783865423,0.06,202.59,202.56,59.66043926]
[1756783865598,0.06,202.59,202.58,2.24803641]
[1756783865800,1e-08,202.59,202.58,19.44857845]
[1756783866120,0.06,202.63,202.59,13.59559401]
[1756783866322,0.06,202.63,202.62,13.59559401]
[1756783866538,0.06,202.63,202.62,58.32857845]
[1756783866844,0.06,202.63,202.62,59.02857845]
[1756783867042,0.06,202.63,202.62,63.9639254]
[1756783867215,1e-08,202.63,202.62,63.9639254]
[1756783867414,1e-08,202.63,202.62,64.45746009]
[1756783867935,1e-08,202.63,202.62,25.57746009]
[1756783868137,1e-08,202.63,202.62,63.9639254]
[1756783868336,1e-08,202.63,202.62,137.9639254]
[1756783868543,1e-08,202.63,202.62,96.83588899]
[1756783868726,1e-08,202.63,202.62,137.9639254]
[1756783869054,1e-08,202.63,202.62,91.90054204]
[1756783869347,1e-08,202.63,202.62,130.78054204]
[1756783869538,1e-08,202.63,202.62,91.90054204]
[1756783870169,1e-08,202.63,202.62,130.76054204]
[1756783870834,1e-08,202.63,202.62,42.46494803]
[1756783871039,1e-08,202.63,202.6,4.93583415]
[1756783871233,1e-08,202.63,202.61,38.86]
[1756783871410,1e-08,202.63,202.61,39.56]
[1756783871614,1e-08,202.63,202.62,38.86]
[1756783872054,0.71000001,202.63,202.62,38.86]
[1756783872431,1e-08,202.63,202.62,38.86]
[1756783874557,1e-08,202.63,202.59,78.93607491]
[1756783874852,1e-08,202.63,202.6,3.59881701]
[1756783875061,1e-08,202.63,202.6,42.45881701]
[1756783875266,1e-08,202.63,202.6,38.86]
[1756783876828,1e-08,202.63,202.6,44.49575387]
[1756783877628,1e-08,202.63,202.61,0.7]
[1756783878436,1e-08,202.63,202.61,5.63556192]
[1756783879462,1e-08,202.63,202.62,0.7]
[1756783880132,1e-08,202.63,202.61,3.60114027]
[1756783880331,1e-08,202.63,202.62,38.84]
[1756783882545,0.71000001,202.63,202.56,0.7]
[1756783882745,26.71000001,202.63,202.57,38.84]
[1756783882947,0.71,202.62,202.57,38.84]
[1756783883246,0.71,202.61,202.57,38.84]
[1756783883865,0.71,202.6,202.53,13.62559401]
[1756783884062,26.0,202.61,202.54,42.44521733]
[1756783884063,0.71,202.59,202.54,42.44521733]
[1756783884243,0.71,202.59,202.54,39.54]
[1756783884949,0.71,202.58,202.54,38.84]
[1756783885647,0.71,202.58,202.54,43.77724017]
[1756783885952,40.837162,202.61,202.54,43.77724017]
[1756783886150,0.71,202.6,202.55,0.7]
[1756783886454,0.71,202.59,202.54,43.77724017]
[1756783886774,0.71,202.59,202.54,44.47724017]
[1756783886956,41.547162,202.61,202.55,0.7]
[1756783887266,41.547162,202.61,202.53,87.62559401]
[1756783887267,4.93583415,202.6,202.53,0.03]
[1756783887575,4.93583415,202.6,202.54,38.84]
[1756783887751,0.71,202.59,202.54,38.84]
[1756783887947,26.0,202.57,202.54,38.84]
[1756783888159,0.71,202.56,202.54,38.84]
[1756783888769,0.71,202.55,202.54,38.84]
[1756783889478,0.71,202.57,202.54,38.84]
[1756783889776,0.71,202.56,202.54,43.77724972]
[1756783890150,0.71,202.56,202.54,38.84]
[1756783890345,0.71,202.58,202.54,43.77723988]
[1756783890577,0.71,202.57,202.54,43.77723988]
[1756783891071,14.839363,202.58,202.54,43.77723988]
[1756783891256,26.0,202.61,202.54,43.77723988]
[1756783891454,0.71,202.59,202.54,43.77723988]
[1756783891773,0.71,202.58,202.54,4.93723988]
[1756783891961,0.71,202.57,202.55,38.84]
[1756783892161,26.71,202.57,202.55,38.84]
[1756783892468,26.0,202.57,202.55,38.84]
[1756783892682,26.71,202.57,202.55,38.84]
[1756783893286,26.0,202.57,202.55,38.84]
[1756783893651,26.0,202.57,202.56,4.93680884]
[1756783894485,26.71,202.57,202.56,4.93680884]
[1756783895180,26.0,202.57,202.55,43.80691021]
[1756783895568,0.66,202.57,202.55,43.80691021]
[1756783896175,15.49863,202.59,202.55,43.80691021]
[1756783896369,0.66,202.58,202.55,43.80691021]
[1756783897256,26.0,202.57,202.55,38.87]
[1756783897662,26.66,202.57,202.55,38.87]
[1756783898283,0.66,202.57,202.55,38.87]
[1756783899677,14.83863,202.6,202.55,38.87]
[1756783899678,26.0,202.58,202.55,38.87]
[1756783899852,0.66,202.57,202.55,0.03]
[1756783900053,26.66,202.57,202.55,0.03]
[1756783900263,41.500098,202.57,202.55,0.03]
[1756783901882,4.93680884,202.56,202.55,0.03]
[1756783902372,31.59680884,202.56,202.55,0.03]
[1756783902882,33.57568384,202.56,202.55,0.03]
[1756783903883,28.638875,202.56,202.55,0.03]
[1756783905293,27.978875,202.56,202.55,0.03]
[1756783905678,28.638875,202.56,202.55,0.03]
[1756783906681,27.978875,202.56,202.55,0.03]
[1756783906875,26.0,202.56,202.55,0.03]
[1756783909994,26.66,202.56,202.55,0.03]
[1756783910285,26.0,202.55,202.53,0.03]
[1756783910665,0.66,202.54,202.53,0.03]
[1756783910895,2.639071,202.54,202.53,0.03]
[1756783911590,7.57636733,202.54,202.53,0.03]
[1756783912091,2.639071,202.54,202.53,0.03]
[1756783912589,7.57636733,202.54,202.53,0.03]
[1756783913892,7.57636733,202.54,202.52,0.03]
[1756783914083,26.0,202.51,202.5,0.03]
[1756783914484,26.66,202.51,202.5,0.03]
[1756783915471,26.0,202.53,202.5,0.03]
[1756783915677,26.0,202.52,202.5,0.03]
[1756783915982,26.0,202.51,202.5,0.03]
[1756783916178,26.66,202.51,202.5,0.03]
[1756783916765,28.639267,202.51,202.5,0.03]
[1756783917789,2.639267,202.51,202.5,0.03]
[1756783917978,1.979267,202.51,202.5,0.03]
[1756783918182,26.0,202.52,202.5,0.03]
[1756783918586,26.66,202.52,202.5,0.03]
[1756783918976,2.63917,202.51,202.5,0.03]
[1756783919996,7.57719775,202.51,202.5,0.03]
[1756783923697,7.57719775,202.51,202.48,0.03]
[1756783924778,5.59802775,202.51,202.48,0.03]
[1756783924980,3.623912,202.5,202.48,0.03]
[1756783925386,0.67,202.49,202.48,0.03]
[1756783925586,4.294801,202.49,202.48,0.03]
[1756783925784,9.23331648,202.49,202.48,0.03]
[1756783929990,29.624801,202.49,202.48,0.03]
[1756783930893,29.624801,202.49,202.48,0.73]
[1756783931204,26.0,202.49,202.48,4.35759248]
[1756783931996,26.0,202.49,202.48,4.3560297]
[1756783932394,26.0,202.49,202.48,0.73]
[1756783933093,26.0,202.49,202.48,4.35671812]
[1756783933295,26.0,202.49,202.48,3.65671812]
[1756783933495,26.0,202.49,202.48,0.03]
[1756783934293,26.67,202.49,202.48,0.03]
[1756783934493,26.0,202.49,202.48,0.03]
[1756783934701,4.93846634,202.5,202.48,0.03]
[1756783935217,26.67,202.49,202.48,0.03]
[1756783935400,26.0,202.49,202.48,0.03]
[1756783936114,26.0,202.49,202.48,0.73]
[1756783936310,26.0,202.49,202.48,0.03]
[1756783937216,4.938363,202.5,202.48,0.03]
[1756783937512,0.67,202.49,202.48,0.03]
[1756783938214,5.60851548,202.49,202.47,0.03]
[1756783938402,5.60851548,202.49,202.45,0.03]
[1756783938804,5.60851548,202.49,202.44,0.03]
[1756783938999,26.0,202.45,202.4,0.2]
[1756783939216,18.6252797,202.48,202.4,0.2]
[1756783939217,26.0,202.43,202.4,0.2]
[1756783939716,0.67,202.42,202.4,0.2]
[1756783940019,2.650247,202.42,202.4,0.2]
[1756783940398,7.59047029,202.42,202.4,0.2]
[1756783943233,26.0,202.39,202.34,0.9]
[1756783943401,26.67,202.39,202.34,0.9]
[1756783943604,26.67,202.39,202.34,0.2]
[1756783943814,41.524059,202.39,202.35,0.7]
[1756783944306,0.67,202.38,202.34,0.2]
[1756783944728,26.0,202.37,202.34,0.2]
[1756783944929,26.0,202.37,202.35,0.7]
[1756783945262,26.0,202.37,202.35,5.6418777]
[1756783945417,29.516056,202.38,202.36,0.7]
[1756783945607,29.516056,202.38,202.37,0.7]
[1756783945806,26.0,202.38,202.37,0.7]
[1756783946102,26.0,202.4,202.37,0.7]
[1756783946718,30.941877,202.4,202.37,0.7]
[1756783946917,26.0,202.4,202.38,4.94119972]
[1756783947132,26.0,202.4,202.39,0.7]
[1756783949014,26.0,202.4,202.39,5.64095558]
[1756783949627,26.0,202.4,202.39,0.7]
[1756783949823,26.0,202.4,202.39,5.64095558]
[1756783950139,26.0,202.42,202.39,5.64095558]
[1756783950330,13.225034,202.41,202.36,0.7]
[1756783950844,13.225034,202.41,202.37,0.7]
[1756783951143,13.225034,202.41,202.37,5.64134049]
[1756783951529,13.225034,202.41,202.37,4.94134049]
[1756783952149,13.225034,202.41,202.37,5.64134049]
[1756783952625,12.555034,202.41,202.38,0.7]
[1756783952825,5.60929413,202.46,202.38,0.7]
[1756783953040,4.94134,202.41,202.38,0.7]
[1756783953230,26.0,202.43,202.39,0.7]
[1756783953540,4.941341,202.42,202.35,4.94193229]
[1756783953726,4.941341,202.42,202.36,14.29559401]
[1756783953934,4.941341,202.42,202.37,0.7]
[1756783954237,4.941341,202.42,202.35,4.94193229]
[1756783954431,0.67,202.41,202.35,4.94193229]
[1756783955037,0.67,202.41,202.35,5.64193229]
[1756783955643,26.0,202.39,202.35,5.64193229]
[1756783955948,26.0,202.39,202.36,0.72]
[1756783956247,26.0,202.39,202.35,4.94193229]
[1756783956549,26.0,202.39,202.36,0.72]
[1756783957347,26.0,202.39,202.36,5.66162587]
[1756783957530,4.941933,202.38,202.36,5.66162587]
[1756783957847,4.941933,202.38,202.36,4.94162587]
[1756783958041,0.66,202.41,202.36,4.94162587]
[1756783958345,39.595594,202.39,202.36,5.66162587]
[1756783959044,39.595594,202.39,202.34,0.2]
[1756783959249,26.66,202.39,202.34,5.14203991]
[1756783959447,0.66,202.38,202.34,5.14203991]
[1756783959651,39.595594,202.39,202.34,5.14203991]
[1756783959652,39.595594,202.39,202.34,5.86203991]
[1756783960148,40.255594,202.39,202.34,5.86203991]
[1756783960353,0.66,202.38,202.34,5.86203991]
[1756783960649,39.595594,202.39,202.34,5.86203991]
[1756783960848,0.66,202.38,202.34,5.86203991]
[1756783961458,39.595594,202.39,202.35,5.66180943]
[1756783961633,40.255594,202.39,202.35,5.66180943]
[1756783962025,0.66,202.38,202.34,5.14214089]
[1756783962252,0.66,202.38,202.34,5.86214089]
[1756783962448,39.595594,202.39,202.35,0.72]
[1756783962651,13.595594,202.39,202.36,0.72]
[1756783962828,0.06,202.49,202.36,0.72]
[1756783962829,0.66,202.45,202.36,0.72]
[1756783963033,14.255594,202.45,202.36,0.72]
[1756783963544,14.255594,202.45,202.37,4.94144388]
[1756783963744,26.0,202.42,202.38,0.72]
[1756783963949,26.0,202.42,202.39,0.72]
[1756783964455,0.66,202.44,202.39,0.72]
[1756783964655,15.509647,202.43,202.39,0.72]
[1756783964857,14.849647,202.43,202.39,0.72]
[1756783965042,14.849647,202.43,202.37,4.94144388]
[1756783965248,14.849647,202.43,202.38,0.72]
[1756783965440,0.66,202.48,202.4,4.94071146]
[1756783965637,0.66,202.47,202.41,0.72]
[1756783965952,0.06,202.46,202.42,15.84926737]
[1756783966138,0.06,202.46,202.43,0.72]
[1756783966457,0.06,202.46,202.44,0.72]
[1756783967830,0.06,202.46,202.45,4.93949123]
[1756783968459,0.06,202.46,202.45,21.5087586]
[1756783969048,0.06,202.49,202.48,15.84926737]
[1756783969470,0.06,202.49,202.48,14.31559401]
[1756783969637,0.06,202.49,202.48,16.56926737]
[1756783969966,1e-08,202.49,202.48,22.00190268]
[1756783970562,1e-08,202.49,202.48,19.25435339]
[1756783970765,1e-08,202.49,202.48,21.50802675]
[1756783971066,1e-08,202.49,202.48,39.5]
[1756783971436,1e-08,202.49,202.48,38.78]
[1756783971848,1e-08,202.49,202.48,43.71875938]
[1756783972572,1e-08,202.49,202.48,38.78]
[1756783972767,1e-08,202.49,202.48,43.71875938]
[1756783972968,1e-08,202.49,202.48,38.78]
[1756783975685,26.66000001,202.49,202.41,13.59559401]
[1756783975887,1e-08,202.49,202.45,15.84926737]
[1756783976054,0.66,202.48,202.44,38.78]
[1756783976254,1e-08,202.49,202.44,39.5]
[1756783976494,1e-08,202.49,202.46,4.93924725]
[1756783977155,0.66000001,202.49,202.44,43.71953233]
[1756783977764,1e-08,202.49,202.45,0.72]
[1756783978560,1e-08,202.49,202.45,5.65941383]
[1756783978771,0.66000001,202.49,202.46,38.86]
[1756783979159,1e-08,202.49,202.46,38.86]
[1756783979478,1e-08,202.49,202.46,39.58]
[1756783980170,1e-08,202.49,202.47,13.59559401]
[1756783980374,1e-08,202.49,202.47,14.31559401]
[1756783980562,1e-08,202.49,202.48,0.72]
[1756783981379,1e-08,202.49,202.48,16.56926737]
[1756783981576,1e-08,202.49,202.48,14.31559401]
[1756783981879,1e-08,202.49,202.48,38.86]
[1756783984571,1e-08,202.49,202.48,43.79875938]
[1756783985178,1e-08,202.49,202.48,43.82875938]
[1756783985781,0.70000001,202.49,202.48,0.03]
[1756783986172,1e-08,202.49,202.48,0.03]
[1756783986986,1e-08,202.49,202.48,52.44559401]
[1756783987171,1e-08,202.49,202.48,53.15559401]
[1756783987370,1e-08,202.49,202.48,56.77101436]
[1756783987583,1e-08,202.49,202.48,17.95101436]
[1756783987783,1e-08,202.49,202.48,58.09435339]
[1756783988886,1e-08,202.49,202.48,60.34802675]
[1756783989090,1e-08,202.49,202.48,21.52802675]
[1756783989391,1e-08,202.49,202.48,60.32802675]
[1756783989687,1e-08,202.49,202.48,58.07435339]
[1756783990088,1e-08,202.49,202.48,19.27435339]
[1756783990388,1e-08,202.49,202.48,18.56435339]
[1756783990600,0.70000001,202.49,202.48,0.03]
[1756783990760,0.70000001,202.49,202.48,38.85]
[1756783993494,0.70000001,202.49,202.48,0.03]
[1756783993986,15.54523901,202.49,202.48,0.03]
[1756783994503,41.54523901,202.49,202.48,0.03]
[1756783994999,26.70000001,202.49,202.48,0.03]
[1756783997375,26.70000001,202.49,202.45,0.03]
[1756783997376,4.93875938,202.48,202.45,0.03]
[1756783997575,26.0,202.46,202.45,0.03]
[1756783997986,0.7,202.46,202.45,0.03]
[1756783998473,28.679659,202.46,202.45,0.03]
[1756783998981,2.679659,202.46,202.45,0.03]
[1756783999184,1.979659,202.46,202.45,0.03]
[1756783999377,0.70000001,202.49,202.45,38.81]
[1756783999780,0.70000001,202.49,202.45,39.52]
[1756783999781,1.979267,202.48,202.45,39.52]
[1756784000383,1.979267,202.48,202.46,4.93924725]
[1756784000577,1.979267,202.48,202.46,5.64924725]
[1756784000797,1e-08,202.49,202.47,38.78]
[1756784000994,1.97926701,202.49,202.46,4.93924725]
[1756784001195,1.97926701,202.49,202.47,38.78]
[1756784002272,1.97926701,202.49,202.45,4.96949123]
[1756784002515,1.97926701,202.49,202.46,38.78]
[1756784002808,1e-08,202.49,202.46,0.71]
[1756784002996,1e-08,202.49,202.47,38.78]
[1756784003191,1e-08,202.49,202.48,38.78]
[1756784003593,1e-08,202.49,202.45,4.96949123]
[1756784003793,1e-08,202.49,202.46,42.40679782]
[1756784003991,1e-08,202.49,202.46,38.78]
[1756784005106,1e-08,202.49,202.47,8.56722351]
[1756784005304,1e-08,202.49,202.48,3.62836618]
[1756784005510,1e-08,202.49,202.48,17.93396019]
[1756784005987,1e-08,202.49,202.48,56.71396019]
[1756784007080,1e-08,202.49,202.48,61.65271957]
[1756784007586,0.70000001,202.49,202.48,3.62836618]
[1756784007893,0.70000001,202.49,202.48,42.44836618]
[1756784008088,3.43877701,202.49,202.48,42.44836618]
[1756784008682,3.43877701,202.49,202.48,3.62836618]
[1756784008882,3.43877701,202.49,202.45,0.03]
[1756784009103,26.0,202.47,202.46,3.63695822]
[1756784009297,26.7,202.47,202.46,3.63695822]
[1756784009493,26.7,202.47,202.45,0.03]
[1756784009689,2.73877701,202.49,202.46,42.85938898]
[1756784009898,2.73877701,202.49,202.47,3.63938898]
[1756784010109,2.73877701,202.49,202.46,39.22]
[1756784010322,3.43877701,202.49,202.47,3.64118216]
[1756784010618,3.43877701,202.49,202.46,39.22]
[1756784010801,26.0,202.48,202.47,3.64108566]
[1756784011792,3.43877701,202.49,202.47,9.28997371]
[1756784011793,2.73877701,202.49,202.47,9.28997371]
[1756784012095,1e-08,202.49,202.48,3.64108566]
[1756784012710,1e-08,202.49,202.48,17.94667967]
[1756784013091,1e-08,202.49,202.48,26.40507342]
[1756784013917,1e-08,202.49,202.48,19.24435339]
[1756784014207,1e-08,202.49,202.48,22.76398776]
[1756784014413,1e-08,202.49,202.48,19.24435339]
[1756784014711,1e-08,202.49,202.48,61.96398776]
[1756784015884,1e-08,202.49,202.48,58.44435339]
[1756784016112,1e-08,202.49,202.48,61.96398776]
[1756784016417,1e-08,202.49,202.48,61.94398776]
[1756784016614,1e-08,202.49,202.48,96.76398776]
[1756784016819,1e-08,202.49,202.48,135.94398776]
[1756784019829,1e-08,202.49,202.48,142.20398776]
[1756784020030,1e-08,202.52,202.49,13.59559401]
[1756784020201,1e-08,202.52,202.51,3.51963437]
[1756784020526,1e-08,202.52,202.5,39.84]
[1756784020707,1e-08,202.52,202.51,4.23963437]
[1756784020908,1e-08,202.52,202.45,0.03]
[1756784020909,0.68,202.51,202.45,0.03]
[1756784021108,0.68,202.51,202.47,13.59559401]
[1756784021537,0.68,202.5,202.46,4.93924725]
[1756784021696,0.68,202.49,202.46,4.93924725]
[1756784021900,0.68,202.49,202.45,0.03]
[1756784021901,0.68,202.48,202.45,0.03]
[1756784022621,0.68,202.48,202.43,39.37]
[1756784022851,4.93924725,202.46,202.43,39.37]
[1756784023120,26.0,202.44,202.43,0.03]
[1756784023527,0.68,202.44,202.43,0.03]
[1756784027140,0.68,202.44,202.43,39.37]
[1756784028524,0.68,202.44,202.43,0.03]
[1756784028844,0.68,202.44,202.43,39.35]
[1756784030544,0.68,202.46,202.43,39.35]
[1756784030753,0.68,202.45,202.43,39.35]
[1756784031223,26.0,202.49,202.43,39.35]
[1756784031424,0.68,202.45,202.43,39.35]
[1756784032860,26.68,202.45,202.43,39.35]
[1756784035442,0.68,202.45,202.43,39.35]
[1756784035636,26.68,202.44,202.43,39.27]
[1756784036038,26.68,202.44,202.43,0.03]
[1756784036553,0.68,202.44,202.43,0.03]
[1756784038026,26.0,202.47,202.43,0.03]
[1756784038247,0.68,202.47,202.43,0.03]
[1756784038437,0.68,202.46,202.43,0.03]
[1756784039043,26.0,202.45,202.43,0.03]
[1756784039260,0.68,202.45,202.43,0.03]
[1756784040260,0.68,202.48,202.43,0.03]
[1756784040473,0.06,202.45,202.43,0.75]
[1756784040641,0.06,202.45,202.43,5.68995875]
[1756784041266,0.06,202.45,202.43,4.96995875]
[1756784041461,0.06,202.45,202.43,0.03]
[1756784041762,0.06,202.45,202.44,39.18]
[1756784042058,0.74,202.45,202.44,39.18]
[1756784042268,0.74,202.45,202.43,39.19]
[1756784042450,0.68,202.44,202.43,39.19]
[1756784042883,0.68,202.44,202.43,0.03]
[1756784045070,26.68,202.44,202.43,0.03]
[1756784045547,0.68,202.44,202.43,0.03]
[1756784046338,26.68,202.44,202.43,0.03]
[1756784046851,31.61973523,202.44,202.42,0.03]
[1756784047054,43.9690733,202.44,202.4,0.03]
[1756784047352,45.9496143,202.44,202.4,0.03]
[1756784047661,33.60027623,202.44,202.4,0.03]
[1756784048163,31.61973523,202.44,202.4,0.03]
[1756784050964,33.60008023,202.44,202.4,0.03]
[1756784052061,31.61973523,202.44,202.4,0.03]
[1756784059058,3.31209977,202.43,202.4,0.03]
[1756784059456,26.0,202.41,202.4,0.03]
[1756784059747,26.0,202.41,202.38,0.03]
[1756784059954,0.66,202.4,202.38,0.03]
[1756784060572,4.94095558,202.39,202.38,0.03]
[1756784060975,5.60095558,202.39,202.38,0.03]
[1756784061484,26.0,202.36,202.35,0.03]
[1756784062175,26.66,202.36,202.35,0.03]
[1756784062767,0.66,202.36,202.35,0.03]
[1756784062965,5.60168808,202.36,202.35,0.03]
[1756784065082,0.66,202.36,202.35,0.03]
[1756784065969,26.0,202.37,202.35,0.03]
[1756784066371,26.66,202.37,202.35,0.03]
[1756784067087,26.0,202.37,202.35,0.03]
[1756784067266,26.66,202.37,202.35,0.03]
[1756784068171,0.66,202.36,202.35,0.03]
[1756784069070,5.60168808,202.36,202.35,0.03]
[1756784071086,44.62168808,202.36,202.35,0.03]
[1756784071270,5.60168808,202.36,202.35,0.03]
[1756784071469,44.62168808,202.36,202.35,0.03]
[1756784072389,46.60281808,202.36,202.35,0.03]
[1756784072689,28.64113,202.36,202.35,0.03]
[1756784072905,33.58281808,202.36,202.35,0.03]
[1756784073084,72.58281808,202.36,202.35,0.03]
[1756784073796,72.58281808,202.36,202.33,0.03]
[1756784075472,38.98,202.35,202.33,0.03]
[1756784075872,0.69,202.34,202.33,0.03]
[1756784076391,65.67,202.34,202.33,0.03]
[1756784076596,69.90217653,202.34,202.33,0.03]